Cogmind - Beta 13 @@@ ROGUE MODE // 2024.05.31 @ 17:27:27 Player: Malak Gallen Result: Destroyed by H-55 Commando via exploding Fusion Modulator Performance ------------- Evolutions (3) 1500 Regions Visited (5) 1000 Robots Destroyed (46) 230 Value Destroyed (1446) 1446 Prototype IDs (6) 120 Alien Tech Used (0) 0 Bonus (0) 0 TOTAL SCORE: 4296 Bonus ------- None Cogmind --------- Core Integrity 0/700 Matter 300/300 Energy 10/100 System Corruption 5% Temperature Cool (12) Movement Core (100) Ox1 Location -7/Factory Parts ------- > --- POWER (2) -------- (None) > --- PROPULSION (3) --- (None) > --- UTILITY (4) ------ Medium Storage Unit Weight Redist. System Advanced Visual Processing Unit > --- WEAPON (4) ------- (None) > --- INVENTORY (10) --- Cryofiber Web Reaction Control System Hardened Light Armor Plating Reflective Plating Reflective Plating Hacking Suite System Restoration Module Peak State ------------ > --- POWER ------------ Light Deuterium Engine Light Deuterium Engine > --- PROPULSION ------- Aluminum Leg Carbon-fiber Leg Carbon-fiber Leg > --- UTILITY ---------- Medium Storage Unit Advanced Visual Processing Unit Improved Signal Interpreter ECM Suite > --- WEAPON ----------- Datajack Mace Mace Mace > --- INVENTORY -------- Light Deuterium Engine Cryofiber Web Weight Redist. System Reaction Control System Hardened Light Armor Plating Improved Shield Generator System Restoration Module [Rating: 30] Favorites ----------- Power Light Ion Engine Engine Light Ion Engine Propulsion Aluminum Leg Leg Aluminum Leg Hover Unit Airjet Utility Medium Storage Unit Device Structural Scanner Storage Medium Storage Unit Processor Advanced Visual Processing Unit Protection Core Shielding Weapon Mace Energy Gun Small Laser Ballistic Gun Light Assault Rifle Impact Weapon Mace Slashing Weapon Great Axe Special Melee Weapon Datajack Build | -11 -10 -10 -9 -8 -7 ------- Run | Yrd Mat Min Mat Mat Fac Slots Evolved 6 | . . . 2 2 2 Power 1 | . . . . . 1 Propulsion 1 | . . . 1 . . Utility 2 | . . . . 2 . Weapon 2 | . . . 1 . 1 Parts Attached 60 | 6 4 1 19 14 16 Power 9 | 1 . . 2 1 5 Engine 9 | 1 . . 2 1 5 Core . | . . . . . . Reactor . | . . . . . . Propulsion 22 | 2 . . 9 7 4 Treads . | . . . . . . Leg 15 | 2 . . 6 3 4 Wheel . | . . . . . . Hover 7 | . . . 3 4 . Flight . | . . . . . . Utility 17 | 1 2 1 3 6 4 Device 8 | . 1 1 . 3 3 Storage 3 | 1 . . 1 1 . Processor 5 | . . . 2 2 1 Hackware . | . . . . . . Protection 1 | . 1 . . . . Artifact . | . . . . . . Weapon 12 | 2 2 . 5 . 3 Energy Gun 1 | 1 . . . . . Energy Cannon . | . . . . . . Ballistic Gun 1 | 1 . . . . . Ballistic Cannon . | . . . . . . Launcher . | . . . . . . Special Weapon . | . . . . . . Impact Weapon 7 | . 2 . 5 . . Slashing Weapon 2 | . . . . . 2 Piercing Weapon . | . . . . . . Special Melee Weapon 1 | . . . . . 1 Unidentified Prototypes . | . . . . . . Corrupted Parts 2 | . . . 2 . . System Corruption 16 | . . . 16 . . Parts Lost 24 | . . . 2 2 20 Power 6 | . . . 2 . 4 Propulsion 9 | . . . . 2 7 Utility 3 | . . . . . 3 Weapon 6 | . . . . . 6 Highest Loss Streak 13 | . . . 1 2 13 To Critical Strikes . | . . . . . . Average Slot Usage (%) 94 | . 98 100 95 96 88 Engine 11 | . 14 14 10 9 12 Leg 21 | . 28 28 23 8 19 Hover 4 | . . . 6 15 . Device 9 | . 9 13 4 17 8 Storage 10 | . 14 14 11 9 7 Processor 6 | . . . 6 9 13 Impact Weapon 26 | . 24 28 33 27 19 Special Melee Weapon 1 | . . . . . 4 Naked Turns . | . . . . . . Heaviest Build 31 | 10 13 13 21 28 31 Greatest Support 40 | 20 20 20 33 33 40 Greatest Overweight (x) 7 | 2 . . 2 7 1 Average Overweight (x) . | . . . . . . Largest Inventory Capacity 10 | 8 8 8 10 10 10 Average Capacity 9 | 7 8 8 9 10 10 Most Carried 10 | 6 8 7 10 10 10 Average Carried 7 | 3 7 7 8 8 7 Final Capacity 10 | 8 8 8 10 10 10 Final Carried 10 | 6 7 7 10 7 7 Class Distribution -------------------- 93% | Mutant 6% | Scavenger-Mutant Dominant Class ---------------- Mutant | -10/Materials Mutant | -10/Mines Mutant | -9/Materials Mutant | -8/Materials Mutant | -7/Factory Resources | -11 -10 -10 -9 -8 -7 ----------- Run | Yrd Mat Min Mat Mat Fac Matter Collected 778 | 260 43 10 215 165 85 Remotely . | . . . . . . Salvage Created 1490 | . 61 71 666 322 370 Parts 39 | . 2 1 21 5 10 Haulers Intercepted 1 | . 1 . . . . Recyclers Shooed . | . . . . . . Parts Field Recycled . | . . . . . . Retrieved Matter . | . . . . . . Parts Self-Destructed . | . . . . . . Prevented . | . . . . . . Kills | -11 -10 -10 -9 -8 -7 ------- Run | Yrd Mat Min Mat Mat Fac Combat Hostiles Destroyed 32 | . . 3 12 6 11 Melee 13 | . . 1 4 2 6 Classes Destroyed 13 | . 2 2 7 1 1 Worker 2 | . . . 1 1 . Builder 4 | . . . 3 . 1 Hauler 1 | . 1 . . . . Recycler 1 | . . . 1 . . Mechanic 1 | . . . 1 . . Operator 1 | . . . 1 . . Watcher 4 | . 1 . 2 1 . Swarmer 6 | . . 2 . . 4 Grunt 15 | . . 1 9 2 3 Duelist 1 | . . . 1 . . Sentry 4 | . . . 2 2 . Hunter 3 | . . . . 2 1 Programmer 3 | . . . . . 3 Best Kill Streak 4 | . 1 2 4 2 4 Combat Bots Only 4 | . . 2 3 1 4 Max Kills in Single Turn 1 | . 1 1 1 1 1 Gunslinging . | . . . . . . Exploded . | . . . . . . Melee 1 | . . 1 1 1 1 Uniques/NPCs Destroyed . | . . . . . . Combat | -11 -10 -10 -9 -8 -7 -------- Run | Yrd Mat Min Mat Mat Fac Hostile Shots Fired 345 | . . 11 71 49 214 Missed 103 | . . 6 17 10 70 Damage Taken 3613 | . . 47 777 479 2310 Core 955 | . . 7 112 127 709 Absorbed by Shields 126 | . . . . . 126 Regen/Repaired (Parts) 90 | . . . 76 14 . Core Remaining (%) 86 | 100 . 97 72 76 . Volleys Fired 3 | . 3 . . . . Largest 2 | . 2 . . . . Hottest 60 | . 60 . . . . Shots Fired 6 | . 6 . . . . Gun 6 | . 6 . . . . Cannon . | . . . . . . Launcher . | . . . . . . Special . | . . . . . . Kinetic 3 | . 3 . . . . Thermal 3 | . 3 . . . . Explosive . | . . . . . . Electromagnetic . | . . . . . . Robot Hit Streak 2 | . 2 . . . . Robot Miss Streak 2 | . 2 . . . . Penetration Max . | . . . . . . Secondary Targets . | . . . . . . Shots Hit Robots 123 | . 5 4 54 20 40 Core Hits 18 | . 2 . 8 2 6 Critical Kills 3 | . . . 2 . 1 Critical Parts Destroyed 21 | . . . 8 5 8 Critical Strikes 24 | . . . 10 5 9 Smash 24 | . . . 10 5 9 Melee Attacks 175 | . 2 9 77 26 61 Impact 169 | . 2 9 77 26 55 Slashing 6 | . . . . . 6 Piercing . | . . . . . . Sneak Attacks 12 | . 1 . 8 1 2 Combat Hostiles 3 | . . . 3 . . Follow-up Attacks 30 | . . 2 12 6 10 Damage Inflicted 4436 | . 133 163 2078 644 1418 Guns 31 | . 31 . . . . Cannons . | . . . . . . Explosions . | . . . . . . Melee 4405 | . 102 163 2078 644 1418 Ramming . | . . . . . . Kinetic 9 | . 9 . . . . Thermal 22 | . 22 . . . . Explosive . | . . . . . . Electromagnetic . | . . . . . . Impact 4302 | . 102 163 2078 644 1315 Slashing 103 | . . . . . 103 Piercing . | . . . . . . Highest Corruption 16 | . . . 16 1 5 Average Corruption 8 | . . . 14 1 1 Corruption Purged . | . . . . . . Corruption Blocked . | . . . . . . Effects 37 | . . . 31 3 3 Message Errors 11 | . . . 8 1 2 Matter Fused 9 | . . . 8 1 . Heat Flow Errors 3 | . . . 3 . . Energy Discharges 8 | . . . 7 . 1 Parts Rejected 1 | . . . . 1 . Data Loss (minor) 2 | . . . 2 . . Data Loss (major) 1 | . . . 1 . . Alerts 1 | . . . 1 . . Misdirections 1 | . . . 1 . . Overload Shots . | . . . . . . Overflow Damage 1297 | . 32 32 589 225 419 Projectiles . | . . . . . . Explosions . | . . . . . . Melee 1297 | . 32 32 589 225 419 Knockbacks 14 | . . 1 4 5 4 Impact 14 | . . 1 4 5 4 Kinetic . | . . . . . . Secondary . | . . . . . . Self-Inflicted Damage . | . . . . . . Shots . | . . . . . . Rammed . | . . . . . . Targets Rammed . | . . . . . . Kicked . | . . . . . . Crushed . | . . . . . . Highest Temperature 195 | . 20 . 195 . . Average Temperature 61 | . 15 . 71 . . Received Heat Transfer 759 | . . 9 360 72 318 Siege Activations . | . . . . . . Robots Corrupted . | . . . . . . Combat Hostiles . | . . . . . . Parts Fried 45 | . 2 4 17 10 12 Impact Corruptions 67 | . 3 3 26 12 23 Robots Melted . | . . . . . . Combat Hostiles . | . . . . . . Parts Melted . | . . . . . . Heat Transferred 50 | . 50 . . . . Parts Sabotaged . | . . . . . . Parts Stolen . | . . . . . . Parts Stripped . | . . . . . . Power Chain Reactions . | . . . . . . Alert | -11 -10 -10 -9 -8 -7 ------- Run | Yrd Mat Min Mat Mat Fac Peak Influence 385 | . 51 144 385 313 222 Initial 142 | . . 19 55 27 142 Average 143 | . 29 93 219 159 127 Maximum Alert Level 1 | . . . 1 1 1 Low Security (%) 71 | 100 100 100 40 52 93 Level 1 28 | . . . 59 47 6 Level 2 . | . . . . . . Level 3 . | . . . . . . Level 4 . | . . . . . . Level 5 . | . . . . . . High Security . | . . . . . . Max Security . | . . . . . . Squads Dispatched 7 | . . . 3 3 1 Investigation 3 | . . . 1 2 . Extermination 1 | . . . . . 1 Reinforcement 3 | . . . 2 1 . Assault . | . . . . . . Garrison . | . . . . . . Intercept . | . . . . . . Searches Triggered . | . . . . . . Construction Impeded . | . . . . . . Haulers Reinforced . | . . . . . . Active Scanning Responses . | . . . . . . Cargo Convoy Interrupts 1 | . . . . . 1 Stealth | -11 -10 -10 -9 -8 -7 --------- Run | Yrd Mat Min Mat Mat Fac Distress Signals 4 | . . . 2 2 . Communications Jammed . | . . . . . . Distress Signals . | . . . . . . Times Spotted 72 | . 2 4 22 11 33 Peak Tracking Total 13 | . 3 3 4 3 13 Tactical Retreats 11 | . . 2 4 1 4 Traps | -11 -10 -10 -9 -8 -7 ------- Run | Yrd Mat Min Mat Mat Fac Traps Triggered 1 | . . . . . 1 Indirectly . | . . . . . . Trap Hack Attempts . | . . . . . . Triggered . | . . . . . . Disarmed . | . . . . . . Reprogrammed . | . . . . . . Reused . | . . . . . . Traps Extracted . | . . . . . . Installed . | . . . . . . Triggered . | . . . . . . Machines | -11 -10 -10 -9 -8 -7 ---------- Run | Yrd Mat Min Mat Mat Fac Machines Disabled . | . . . . . . Max in Single Turn . | . . . . . . Machines Repaired . | . . . . . . Machines Dismantled . | . . . . . . Machines Sabotaged . | . . . . . . Overloaded Fab Kills . | . . . . . . Hacking | -11 -10 -10 -9 -8 -7 --------- Run | Yrd Mat Min Mat Mat Fac Machines Accessed 11 | . 3 . 4 4 . Terminals 9 | . 3 . 3 3 . Fabricators . | . . . . . . Repair Stations 2 | . . . 1 1 . Recycling Units . | . . . . . . Scanalyzers . | . . . . . . Garrison Access . | . . . . . . Total Hacks 40 | . 5 . 14 21 . Successful 29 | . 5 . 11 13 . Failed 11 | . . . 3 8 . Catastrophic 3 | . . . 1 2 . Database Lockouts . | . . . . . . Manual 3 | . . . . 3 . Terminals 24 | . 5 . 9 10 . Fabricators . | . . . . . . Repair Stations 16 | . . . 5 11 . Recycling Units . | . . . . . . Scanalyzers . | . . . . . . Garrison Access . | . . . . . . Terminal Hacks 16 | . 5 . 6 5 . Record 3 | . . . 1 2 . Robot Analysis 1 | . . . 1 . . Prototype ID Bank 3 | . 1 . 1 1 . Branch Access Points 1 | . 1 . . . . Terminal Index 1 | . 1 . . . . Alert Level 1 | . . . 1 . . Unreport Threat 1 | . . . 1 . . Locate Traps 2 | . . . 1 1 . Dispatch Records 1 | . . . . 1 . Zone Layout 2 | . 2 . . . . Fabricator Hacks . | . . . . . . Repair Station Hacks 13 | . . . 5 8 . Scan Component 8 | . . . 3 5 . Repair 5 | . . . 2 3 . Recycling Unit Hacks . | . . . . . . Scanalyzer . | . . . . . . Garrison Access Hacks . | . . . . . . Unauthorized Hacks . | . . . . . . Terminals . | . . . . . . Fabricators . | . . . . . . Repair Stations . | . . . . . . Recycling Units . | . . . . . . Scanalyzers . | . . . . . . Garrison Access . | . . . . . . Data Cores Recovered 1 | . . . 1 . . Used 1 | . . . 1 . . Hacking Detections 8 | . 1 . 4 3 . Full Trace Events 4 | . . . 2 2 . Feedback Events . | . . . . . . Feedback Blocked . | . . . . . . Robot Schematics Acquired . | . . . . . . Robots Built . | . . . . . . Authchips . | . . . . . . Time . | . . . . . . Total Robot Build Rating . | . . . . . . Part Schematics Acquired . | . . . . . . Parts Built . | . . . . . . Authchips . | . . . . . . Time . | . . . . . . Total Part Build Rating . | . . . . . . Parts Repaired 5 | . . . 2 3 . Time 176 | . . . 62 114 . Parts Recycled . | . . . . . . Recycled Matter . | . . . . . . Retrieved Matter . | . . . . . . Retrieved Components . | . . . . . . Parts Scanalyzed . | . . . . . . Part Schematics Acquired . | . . . . . . Parts Damaged . | . . . . . . Bothacking | -11 -10 -10 -9 -8 -7 ------------ Run | Yrd Mat Min Mat Mat Fac Used RIF Installer . | . . . . . . Robots Hacked . | . . . . . . Non-combat . | . . . . . . Combat . | . . . . . . Robot Hacks Applied . | . . . . . . Relay Couplers Released . | . . . . . . Fabnet Peak Effective % . | . . . . . . Robots Rewired . | . . . . . . Allies Hacked . | . . . . . . Hacks Repelled . | . . . . . . Allies | -11 -10 -10 -9 -8 -7 -------- Run | Yrd Mat Min Mat Mat Fac Total Allies . | . . . . . . Largest Group . | . . . . . . Highest-Rated Group . | . . . . . . Highest-Rated Ally . | . . . . . . Total Orders . | . . . . . . Ally Attacks . | . . . . . . Total Damage . | . . . . . . Kills . | . . . . . . Allies Corrupted . | . . . . . . Allies Melted . | . . . . . . Intel | -11 -10 -10 -9 -8 -7 ------- Run | Yrd Mat Min Mat Mat Fac Robot Analysis Total 1 | . . . 1 . . Derelict Logs Recovered 1 | . . 1 . . . Drone Launches . | . . . . . . Drone Recoveries . | . . . . . . Exploration | -11 -10 -10 -9 -8 -7 ------------- Run | Yrd Mat Min Mat Mat Fac Turns Passed 2683 | 63 393 244 922 398 663 Spaces Moved 1652 | 41 275 175 505 274 382 Core 8 | 7 . . . 1 . Treads . | . . . . . . Legs 1304 | 34 275 175 353 85 382 Wheels . | . . . . . . Hover 340 | . . . 152 188 . Flight . | . . . . . . Fastest Speed 50 | 50 120 120 52 52 120 Average Speed 110 | 119 120 120 100 97 123 Slowest Speed 400 | 150 120 120 190 400 190 Overloaded Moves . | . . . . . . Propulsion Burnouts . | . . . . . . Robots Hopped . | . . . . . . Cave-ins Triggered . | . . . . . . Exploration Rate (%) 30 | 3 37 55 35 39 15 Regions Visited 5 Branch Regions 1 Pre-discovered Areas . | . . . . . . Known Exits Taken 2 | . 1 . . 1 . Unknown Exits Taken 3 | 1 . 1 1 . . Scrap Searched . | . . . . . . Spaces Dug . | . . . . . . Terrain Destroyed . | . . . . . . Melee . | . . . . . . Projectile . | . . . . . . AOE . | . . . . . . Terrain Rammed . | . . . . . . Walls Destroyed . | . . . . . . Machines Disabled . | . . . . . . Actions | -11 -10 -10 -9 -8 -7 --------- Run | Yrd Mat Min Mat Mat Fac Total 2263 | 52 332 197 823 368 491 Wait 343 | . 34 15 214 55 25 Move 1647 | 40 274 174 504 273 382 Hop . | . . . . . . Pick Up 38 | 6 8 . 9 2 13 Fast Attach 30 | 6 1 . 11 6 6 Attach 15 | . . . 2 4 9 Detach 8 | . . . 3 2 3 Swap 15 | . 3 1 6 4 1 Drop 29 | . 7 . 13 3 6 Fire 3 | . 3 . . . . Melee 135 | . 2 7 61 19 46 Ram . | . . . . . . Kick . | . . . . . . Crush . | . . . . . . Escape Stasis . | . . . . . . Rewire . | . . . . . . Trap . | . . . . . . Miscellaneous . | . . . . . . Route ------- -11/Scrapyard -10/Materials -10/Mines -9/Materials (discovered 2 exits: *Mat / *Min) -8/Materials -7/Factory History --------- Turn | Location | Event 11 | -11/Scrapyard | Discovered new exit (range 16) 64 | -11/Scrapyard | Entered Materials 149 | -10/Materials | Identified exit to Mines 314 | -10/Materials | Build established: Mutant 457 | -10/Materials | Entered Mines 695 | -10/Mines | Discovered new exit (range 6) 701 | -10/Mines | Entered Materials 701 | -9/Materials | Evolved 2 slots: Propulsion x1, Weapon x1 702 | -9/Materials | Identified exit to Mines 886 | -9/Materials | System corruption reached 10% 904 | -9/Materials | Repaired Corrupted Aluminum Leg 930 | -9/Materials | Repaired Aluminum Leg 1616 | -9/Materials | Discovered new exit (range 14) 1623 | -9/Materials | Entered another Materials area 1623 | -8/Materials | Evolved 2 slots: Utility x2 1667 | -8/Materials | Repaired Airjet 1667 | -8/Materials | Repaired Airjet 1705 | -8/Materials | Repaired Airjet 2005 | -8/Materials | Discovered new exit (range 13) 2021 | -8/Materials | Identified exit to Factory 2021 | -8/Materials | Entered Factory 2021 | -7/Factory | Evolved 2 slots: Power x1, Weapon x1 2588 | -7/Factory | Lost 13 parts (3p5n2u3w) 2660 | -7/Factory | Cargo convoy interrupted 2671 | -7/Factory | Core integrity fell below 50% 2682 | -7/Factory | Core integrity fell below 20% 2684 | -7/Factory | Destroyed by H-55 Commando via exploding Fusion Modulator Last Messages --------------- 02669_ Lgt. Deuterium Engine destroyed. 02670_ Mace follow-up attack on L-41 Fighter. 02671_ P-60 Hacker resets L-41 Fighter, system corruption cleaned. 02671_ Slug penetrates Wall. 02674_ L-41 Fighter destroyed. 02677_ R-06 Scavenger collects Carbon-fiber Leg. 02677_ Slug penetrates Wall. 02678_ Titanium Leg destroyed. 02679_ Mace follow-up attack on X-57 Shotgunner. 02679_ Axe destroyed. 02680_ M-28 Smith repairs I-36 Angel. 02681_ Mace destroyed. 02681_ Penetrated by Slug. 02682_ U-05 Engineer builds a Door. 02682_ Great Axe destroyed. 02684_ Fusion Modulator explodes. 02684_ P-60 Hacker destroyed. 02684_ Fusion Modulator explodes. 02684_ P-60 Hacker destroyed. Map ----- +----------------------------------------------------+ | ?????????????????????????????????????????????????? | | ?????????????????????????????????????????????????? | | ?????????????????????????????????????????????????? | | ???????????????????? ????????????????????????????? | | ??????????????????"" ????????????????????????????? | | ?????????????????? ????????????????????????????? | | ?????????????????? ????????????????????????????? | | ???????????????? ? ????????????????????????????? | | ???????????????? ????????????????????????????? | | ???????????????? ????????????????????????????? | | ????????????????![[ ????????????????????????????? | | ?????????????????[ ????????????????????????????? | | ????????????????[[ ????????????????????????????? | | ???????????????? ????????????????????????????? | | ???????????????? " ????????????????????????????? | | ???????????????? "%" ????????????????????????????? | | ????????????????? " ????????????????????????????? | | ?????????#?????####+#########????????????????????? | | ?????????? ??# #????????????????????? | | ??????????? # % #????????????######### | | ????????????? + #????????????# | | ???????????????# ! #????????????# | | ???????????????# %p ##?###+###???# | | ???????????????# h ;#?# #???# | | ???????????????# !x! %#### ##### | | ???????????????# % @ i A m + | | ???????????????# x h #### ##### | | ???????????????# x #??# #???# | | ???????????????# im #??### ###???# | | ???????????????# r #????# #?????# | | ???????????????#######;##+###????# #?????# | | ?????????????????????##?# ?????? #?????# | | ????????????????????????# ????? #?????######### | | ????????????????????????# ???? #?????????????? | | ????????????????????????# ??? #?????????????? | | ????????????????????????# ####??####?????????????? | | ???????????????????????? #??????????????????????? | | ???????????????????????? #??????????????????????? | | ???????????????????????? #??????????????????????? | | ???????????????????????? ???????????????????????? | | ???????????????????????? ?????????????????????? | | ???????????????????????? ????????????????????? | | ???????????????????????? ??????????????????? ## | | ???????????????????????? ????????????????? ??? | | ???????????????????????? ?????????????????###???? | | ?????????????????????????????????????????????????? | | ?????????????????????????????????????????????????? | | ?????????????????????????????????????????????????? | | ?????????????????????????????????????????????????? | | ?????????????????????????????????????????????????? | +----------------------------------------------------+ Best States ------------- Heat Dissipation 34 Energy Generation 23 Energy Capacity 300 Matter Stores 300 Matter Capacity 300 Sight Range 20 Terrain Scan Density 210 ECM Strength 1 Additional Mass Support 6 Core Shielding 20 Evasion (%) 62 Item Schematics ----------------- None Robot Schematics ------------------ None Fabricated ------------ Nothing Alien Tech Used ----------------- None Achievements -------------- Dynamic Key System Compromised Challenges ------------ None Game ------ Seed HeartLauncherScanner Manual? 0 Play Time 01:01:21 Cumulative 7.7 hours Start 2024.05.31 @ 12:36:28 End 2024.05.31 @ 17:27:27 Sessions 3 Manual Loads 0 Difficulty Rogue Special Mode None Game No. 7 Rogue 7 Adventurer 0 Explorer 0 Win Type - Total 0 Types 0/0/0/0/0/0/0/0/0 Lore% 7 Gallery% 12 Achievement% 12 Wizard Run 0 Options --------- Layout 1 ASCII 1 Keyboard 1 Movement Numpad Keybinds 0 Fullscreen 1 Font 24/Cog Map View 50x35 Zoom Use 21% Tactical HUD 1 Map Filters NONE Filters NONE Steam 1 RUN: d6cdbb89-49d1-405d-b90d-1d6ed349daf4